bitfinex/quotes_ETHUSD_20240713
["timestamp","ask_amount","ask_price","bid_price","bid_amount"]
[1720830804380,1.33643032,3135.7,3135.6,6.93848847]
[1720830804678,1.67045886,3135.9,3135.8,2.23228]
[1720830804679,1.67022347,3135.9,3135.8,2.23228]
[1720830804874,2.77493365,3135.9,3135.8,3.04628]
[1720830805080,2.77493093,3135.9,3135.8,3.09661335]
[1720830807363,9.12393083,3136.2,3135.9,2.23216]
[1720830807551,1.10471218,3136.1,3136.0,0.05019192]
[1720830807869,1.1047112,3136.1,3136.0,0.05019192]
[1720830808576,1.1047112,3136.1,3136.0,2.28233192]
[1720830808885,1.1047112,3136.1,3136.0,5.57023192]
[1720830809757,2.7747618,3136.1,3136.0,5.57023192]
[1720830810555,2.7747618,3136.1,3136.0,7.80237192]
[1720830810771,1.1047112,3136.1,3136.0,7.80237192]
[1720830810971,1.1047112,3136.1,3136.0,7.75218]
[1720830811170,7.12,3136.2,3136.1,4.46414]
[1720830811375,7.12,3136.2,3136.1,4.51426121]
[1720830811376,9.89462512,3136.2,3136.1,4.51426121]
[1720830812082,8.22460625,3136.2,3136.1,4.51426121]
[1720830812579,1.10460625,3136.2,3136.1,4.51426121]
[1720830813898,1.10460625,3136.2,3136.1,0.05012121]
[1720830814068,3.1086289,3136.2,3136.1,0.05012121]
[1720830814390,1.41546914,3136.2,3136.1,0.05007471]
[1720830814601,3.10822588,3136.2,3136.1,0.05007471]
[1720830814976,2.2684,3136.5,3136.1,0.05007471]
[1720830815297,2.00352932,3136.3,3136.1,0.05007471]
[1720830815484,3.10822804,3136.2,3136.1,0.05007471]
[1720830815659,1.10469872,3136.2,3136.1,0.05007471]
[1720830816913,3.10822804,3136.2,3136.1,0.05007471]
[1720830817378,2.2684,3136.5,3136.1,0.05007471]
[1720830817699,0.22684,3136.4,3136.1,0.05007471]
[1720830817868,2.00365462,3136.3,3136.1,0.05007471]
[1720830818064,2.00365462,3136.3,3136.2,0.814]
[1720830818375,3.10835243,3136.3,3136.2,0.86400401]
[1720830821092,2.2684,3136.5,3136.2,0.86400401]
[1720830821400,2.00389305,3136.3,3136.2,0.86400401]
[1720830821621,3.10858818,3136.3,3136.2,0.86400401]
[1720830822400,3.96549395,3136.3,3136.2,0.05000401]
[1720830822570,3.96549395,3136.3,3135.8,0.814]
[1720830822773,2.0040693,3136.1,3135.9,0.05021613]
[1720830822998,3.10876443,3136.0,3135.7,0.4]
[1720830823305,3.10876443,3135.9,3135.8,0.05028685]
[1720830824498,4.66097522,3136.2,3135.8,0.05028685]
[1720830824499,2.3231,3136.2,3135.8,0.05028685]
[1720830824707,3.10925657,3135.9,3135.8,0.05028685]
[1720830824907,1.10482902,3135.9,3135.8,0.05028685]
[1720830825289,4.21409172,3135.9,3135.8,0.05028685]
[1720830825799,2.20965198,3135.9,3135.8,0.05028685]
[1720830827382,3.42792902,3135.9,3135.8,0.05028685]
[1720830827708,7.47731719,3135.9,3135.8,0.05028685]
[1720830827872,4.03318121,3135.9,3135.8,0.05028685]
[1720830828075,7.4775362,3135.9,3135.8,0.05028685]
[1720830828294,5.13808202,3135.9,3135.8,0.05028685]
[1720830828886,5.13808202,3135.9,3135.7,0.4]
[1720830829083,1.89505704,3135.8,3135.7,0.4]
[1720830831106,1.89505704,3135.8,3135.7,1.214]
[1720830831274,5.76813883,3135.9,3135.7,1.214]
[1720830831275,3.42792902,3135.9,3135.7,1.214]
[1720830831479,1.10488971,3135.8,3135.7,1.214]
[1720830832095,3.44550792,3135.8,3135.7,1.214]
[1720830833513,1.10488971,3135.8,3135.7,1.214]
[1720830834495,1.43839635,3135.9,3135.7,1.214]
[1720830834682,1.10485152,3135.8,3135.7,1.214]
[1720830835177,1.10484282,3135.8,3135.7,1.214]
[1720830836010,1.10484282,3135.8,3135.7,1.26440407]
[1720830836213,1.10484282,3135.8,3135.7,3.49675407]
[1720830836378,3.1112312,3135.8,3135.7,3.49675407]
[1720830836710,1.10484282,3135.8,3135.7,3.49675407]
[1720830837420,1.10484282,3135.8,3135.7,2.68275407]
[1720830837715,1.10484282,3135.8,3135.7,3.49675407]
[1720830837915,2.34005208,3135.9,3135.8,2.23228]
[1720830838108,3.44482836,3135.9,3135.8,2.23228]
[1720830838305,3.44482836,3135.9,3135.8,2.28261335]
[1720830839523,1.43834361,3135.9,3135.8,2.28261335]
[1720830841008,3.44468521,3135.9,3135.8,2.28261335]
[1720830841810,1.43834361,3135.9,3135.8,2.28261335]
[1720830843197,3.44463146,3135.9,3135.8,2.48261335]
[1720830843784,2.33993087,3135.9,3135.8,2.48261335]
[1720830843989,1.10473483,3135.9,3135.8,7.02869335]
[1720830844210,2.77682205,3135.9,3135.8,7.02869335]
[1720830844410,9.12652624,3136.2,3136.1,2.23207]
[1720830844602,10.23116106,3136.2,3136.1,3.09616148]
[1720830847022,7.12,3136.2,3136.1,3.09616148]
[1720830847225,10.2307716,3136.2,3136.1,3.09616148]
[1720830847526,8.22462629,3136.2,3136.1,5.32823148]
[1720830848004,9.89641057,3136.2,3136.1,7.64203148]
[1720830848199,2.77641057,3136.2,3136.1,7.64203148]
[1720830850442,0.33355849,3136.4,3136.3,2.23192]
[1720830850651,1.43808419,3136.4,3136.3,3.09579257]
[1720830852208,1.43808419,3136.4,3136.3,5.32771257]
[1720830852209,3.10895664,3136.4,3136.3,5.32771257]
[1720830853631,0.33355849,3136.4,3136.3,5.32771257]
[1720830853929,2.00404746,3136.4,3136.3,5.32771257]
[1720830854099,0.33355849,3136.4,3136.3,5.32771257]
[1720830854294,2.0039953,3136.4,3136.3,5.32771257]
[1720830854549,1.43803656,3136.4,3136.3,5.32771257]
[1720830854830,1.43803656,3136.4,3136.3,7.55963257]
[1720830854831,2.7742841,3136.4,3136.3,7.55963257]
[1720830855003,0.33355849,3136.4,3136.3,7.55963257]
[1720830855203,0.33355849,3136.4,3136.3,9.87343257]
[1720830857002,7.12,3136.7,3136.6,4.46342]
[1720830857201,1.10433378,3136.7,3136.6,5.27742]
[1720830857511,1.33624754,3136.8,3136.7,4.46328]
[1720830857712,2.44057231,3136.8,3136.7,4.46328]
[1720830857915,2.44057231,3136.8,3136.7,4.51276135]
[1720830858432,1.10432477,3136.8,3136.7,4.51276135]
[1720830859533,1.66971682,3137.0,3136.7,4.51276135]
[1720830859534,1.33624754,3137.0,3136.7,0.04948135]
[1720830859730,1.10429743,3136.9,3136.8,5.27714]
[1720830860129,7.12,3137.2,3136.9,2.2315]
[1720830860342,7.12,3137.2,3136.9,4.463]
[1720830860343,1.33453159,3137.0,3136.9,4.463]
[1720830860543,1.33453159,3137.0,3136.9,5.277]
[1720830860719,1.10430562,3137.0,3136.9,5.277]
[1720830861067,1.33453159,3137.2,3137.1,4.46272]
[1720830861205,1.33453159,3137.3,3137.2,5.27656]
[1720830861412,2.43874614,3137.3,3137.2,5.27656]
[1720830863111,2.43874614,3137.3,3137.2,3.04528]
[1720830863307,1.33453159,3137.3,3137.2,3.04528]
[1720830863540,2.77093541,3137.3,3137.2,3.09440801]
[1720830863917,2.77074775,3137.3,3137.2,3.09440801]
[1720830865325,1.1042931,3137.3,3137.2,3.09440801]
[1720830866519,2.0000164,3137.4,3137.2,3.09440801]
[1720830866520,0.33356175,3137.4,3137.2,3.09440801]
[1720830866820,1.10429812,3137.3,3137.2,3.09440801]
[1720830867417,2.43673784,3137.3,3137.2,3.09440801]
[1720830867852,1.10429812,3137.3,3137.2,3.09440801]
[1720830868218,2.43664341,3137.3,3137.2,3.09440801]
[1720830870038,2.43664172,3137.3,3137.2,3.09440801]
[1720830870246,2.43664172,3137.3,3137.2,0.86312801]
[1720830870820,2.43664172,3137.3,3137.2,3.09440801]
[1720830873461,2.43663875,3137.3,3137.2,3.09440801]
[1720830874123,2.43664735,3137.3,3137.2,3.09440801]
[1720830876455,2.4368683,3137.3,3137.2,3.09440801]
[1720830876690,1.33256624,3137.3,3137.2,3.09440801]
[1720830876845,2.43684604,3137.3,3137.2,3.09440801]
[1720830877243,1.1042798,3137.3,3137.2,0.04912801]
[1720830877446,1.1042798,3137.3,3137.2,0.86312801]
[1720830877447,2.76998624,3137.3,3137.2,0.86312801]
[1720830877647,2.76998624,3137.3,3137.2,0.814]
[1720830877842,2.76998624,3137.3,3137.2,0.86305698]
[1720830879362,2.77073358,3137.3,3137.2,0.86305698]
[1720830880031,4.49224453,3137.6,3137.2,0.86305698]
[1720830880032,2.4925,3137.6,3137.2,0.86305698]
[1720830880360,1.66647616,3137.3,3137.2,0.86305698]
[1720830880661,2.77077185,3137.3,3137.2,0.86305698]
[1720830881962,1.10429569,3137.3,3137.2,0.86305698]
[1720830882164,3.59739569,3137.3,3137.2,0.04905698]
[1720830882546,3.59739569,3137.3,3137.0,0.814]
[1720830882862,1.66744499,3137.1,3137.0,0.814]
[1720830883068,2.77174068,3137.1,3137.0,0.814]
[1720830883363,3.05281671,3137.3,3137.0,0.814]
[1720830883552,1.10439114,3137.2,3137.0,0.814]
[1720830883748,1.10439114,3137.1,3137.0,0.814]
[1720830883964,1.10439138,3137.1,3137.0,0.814]
[1720830885061,2.4931,3137.3,3137.0,0.814]
[1720830885367,1.10439129,3137.2,3137.0,0.814]
[1720830885568,1.10439129,3137.1,3137.0,0.814]
[1720830885766,1.10439129,3137.2,3137.0,0.814]
[1720830885935,1.10439129,3137.1,3137.0,0.814]
[1720830886367,2.4931,3137.3,3137.0,0.814]
[1720830886566,1.10435551,3137.1,3137.0,0.814]
[1720830887038,1.10436474,3137.1,3137.0,0.814]
[1720830889658,3.1064983,3137.1,3137.0,0.814]
[1720830890054,3.1064983,3137.1,3137.0,1.014]
[1720830890461,3.10835789,3137.1,3137.0,1.014]
[1720830892664,1.1043789,3137.1,3137.0,3.24543]
[1720830893070,1.1043789,3137.1,3137.0,5.47686]
[1720830893256,1.1043789,3137.1,3137.0,7.77516]
[1720830893556,1.33640309,3137.1,3137.0,7.77516]
[1720830893882,2.4405623,3137.1,3137.0,7.77516]
[1720830894089,2.44056226,3137.1,3137.0,7.97516]
[1720830894390,1.10415917,3137.1,3137.0,7.97516]
[1720830895149,1.10415917,3137.1,3137.0,10.20659]
[1720830895783,1.33640309,3137.4,3137.3,4.46242]
[1720830895957,1.33640309,3137.5,3137.4,4.46228]
[1720830896157,1.33640309,3137.6,3137.5,5.27614]
[1720830896359,2.44037546,3137.6,3137.5,5.27614]
[1720830896716,2.44037546,3137.6,3137.5,5.32489361]
[1720830897350,1.10397237,3137.6,3137.5,5.32489361]
[1720830897851,2.44037546,3137.6,3137.5,5.32489361]
[1720830898466,1.10397237,3137.6,3137.5,5.32489361]
[1720830899558,2.44037546,3137.6,3137.5,5.32489361]
[1720830900179,2.7744486,3137.6,3137.5,5.32489361]
[1720830900491,2.7744486,3137.6,3137.5,2.27982361]
[1720830900795,1.10405444,3137.6,3137.5,3.09382361]
[1720830902299,2.77480191,3137.6,3137.5,3.09382361]
[1720830902501,1.10405444,3137.6,3137.5,3.09382361]
[1720830902670,1.10405295,3137.6,3137.5,3.09382361]
[1720830903204,1.10409191,3137.6,3137.5,3.09376361]
[1720830903359,1.10409191,3137.7,3137.5,3.09376361]
[1720830903564,1.10409191,3137.6,3137.5,2.27976361]
[1720830903786,1.10409191,3137.6,3137.5,3.09376361]
[1720830904573,2.77490863,3137.6,3137.5,3.09376361]
[1720830905097,2.77497748,3137.6,3137.5,3.09376361]
[1720830905764,2.3427,3138.0,3137.5,3.09376361]
[1720830905965,3.3432842,3137.9,3137.7,0.814]
[1720830906191,1.10408199,3137.8,3137.7,0.814]
[1720830907097,2.7748574,3137.8,3137.7,0.814]
[1720830907296,2.7748574,3137.8,3137.7,3.04493]
[1720830907498,1.10408199,3137.8,3137.7,3.04493]
[1720830909297,1.10408064,3137.8,3137.7,3.04493]
[1720830909693,3.44678064,3137.8,3137.7,3.04493]
[1720830909872,5.45124474,3137.8,3137.7,3.04493]
[1720830910602,3.44678064,3137.8,3137.7,3.04493]
[1720830911083,5.45124474,3137.8,3137.7,3.09340594]
[1720830911277,5.99636921,3137.8,3137.7,0.86247594]
[1720830912171,3.10854474,3137.8,3137.7,0.86247594]
[1720830912378,1.10408064,3137.8,3137.7,3.09340594]
[1720830912580,9.79632453,3138.2,3137.8,2.23086]
[1720830912886,3.1084459,3138.1,3137.9,0.814]
[1720830913075,2.00441328,3138.1,3137.9,0.814]
[1720830913276,1.10403047,3138.0,3137.9,0.814]
[1720830915303,3.10818055,3138.0,3137.9,0.814]
[1720830915510,3.10819425,3138.0,3137.9,0.814]
[1720830915814,2.00413699,3138.0,3137.9,0.814]
[1720830915983,3.10820139,3138.0,3137.9,0.814]
[1720830918495,1.1040644,3138.0,3137.9,5.27558]
[1720830918899,1.1040644,3138.0,3137.9,5.32390436]
[1720830919108,2.3427,3138.5,3138.0,2.23071]
[1720830919285,2.00415456,3138.2,3138.0,2.23071]
[1720830919603,2.00415456,3138.2,3138.1,0.04817925]
[1720830919808,3.10814872,3138.2,3138.1,0.04817925]
[1720830921813,1.10399416,3138.2,3138.1,0.04817925]
[1720830922516,2.3427,3138.5,3138.1,0.04817925]
[1720830922703,2.00384448,3138.3,3138.1,0.86217925]
[1720830922906,1.10395954,3138.2,3138.1,0.86217925]
[1720830923215,1.10396597,3138.2,3138.1,0.86217925]
[1720830923411,3.1078092,3138.2,3138.1,0.04817925]
[1720830925589,2.3427,3138.5,3138.1,0.04817925]
[1720830925791,2.00389759,3138.2,3138.1,0.04817925]
[1720830925987,3.10790165,3138.2,3138.1,0.04817925]
[1720830926616,3.10790165,3138.2,3138.1,0.86217925]
[1720830926920,1.10400406,3138.2,3138.1,0.86217925]
[1720830927222,1.10400406,3138.2,3138.1,3.04464]
[1720830927387,2.7738979,3138.2,3138.1,3.04464]
[1720830927730,2.7738979,3138.2,3138.1,3.09280118]
[1720830927888,1.10400406,3138.2,3138.1,3.09280118]
[1720830928212,2.77400963,3138.2,3138.1,3.09280118]
[1720830928617,1.10400406,3138.2,3138.1,3.09280118]
[1720830928919,1.10400406,3138.2,3138.1,0.86216118]
[1720830929119,1.10397137,3138.2,3138.1,0.86216118]
[1720830931690,1.10397137,3138.2,3138.1,0.92210719]
[1720830932518,2.3427,3138.5,3138.1,3.15274719]
[1720830932688,3.10881208,3138.4,3138.1,3.15274719]
[1720830932887,2.3427,3138.5,3138.1,3.15274719]
[1720830933118,3.10880322,3138.4,3138.1,3.15274719]
[1720830933323,3.10880322,3138.3,3138.1,3.15274719]
[1720830933488,1.10390668,3138.2,3138.1,3.15274719]
[1720830934595,1.10390668,3138.2,3138.1,7.83178719]
[1720830934789,1.67087359,3138.2,3138.1,7.83178719]
[1720830934982,2.77478027,3138.2,3138.1,7.83178719]
[1720830935521,2.00520676,3138.5,3138.4,2.23041]
[1720830935825,2.0052112,3138.5,3138.4,2.33819639]
[1720830936008,3.10904872,3138.5,3138.4,2.33819639]
[1720830936592,3.10941043,3138.5,3138.4,2.33819639]
[1720830937605,3.10941043,3138.5,3138.4,4.56862639]
[1720830937804,1.10383752,3138.5,3138.4,4.56862639]
[1720830938195,2.77565108,3138.5,3138.4,4.56862639]
[1720830939086,7.12,3138.6,3138.5,2.23036]
[1720830939310,8.22374393,3138.6,3138.5,3.04436]
[1720830939510,8.22374393,3138.6,3138.5,3.15203131]
[1720830939892,1.10374393,3138.6,3138.5,3.15203131]
[1720830941689,2.77496252,3138.6,3138.5,3.15203131]
[1720830942289,9.4424,3139.1,3138.6,2.23023]
[1720830942490,2.00509569,3138.9,3138.8,0.814]
[1720830942694,3.10880013,3138.9,3138.8,0.814]
[1720830943012,3.10880344,3138.9,3138.8,0.814]
[1720830943895,3.10880344,3138.9,3138.8,0.92138675]
[1720830945428,3.10880344,3138.9,3138.8,5.38168675]
[1720830945429,1.10373467,3138.9,3138.8,5.38168675]
[1720830945818,2.77406858,3138.9,3138.8,5.38168675]
[1720830946126,2.77406858,3138.9,3138.8,5.2743]
[1720830946127,1.10362148,3138.9,3138.8,5.2743]
[1720830946313,2.43971291,3138.9,3138.8,5.2743]
[1720830946520,2.43971291,3138.9,3138.8,5.38165837]
[1720830948333,1.10362148,3138.9,3138.8,5.38165837]
[1720830949194,1.33609143,3139.1,3139.0,4.46]
[1720830949406,2.43961014,3139.1,3139.0,5.38121339]
[1720830950332,1.10351871,3139.1,3139.0,5.38121339]
[1720830952516,1.66791823,3139.4,3139.3,2.22979]
[1720830952715,2.77143794,3139.4,3139.3,2.22979]
[1720830952915,1.10351971,3139.4,3139.3,2.33673309]
[1720830953120,1.10351791,3139.4,3139.3,2.33673309]
[1720830953327,2.77142741,3139.4,3139.3,0.10694309]
[1720830953640,2.77142741,3139.4,3139.2,0.814]
[1720830953641,1.61707065,3139.4,3139.2,0.814]
[1720830953837,2.77091665,3139.3,3139.2,0.814]
[1720830955340,2.43716387,3139.3,3139.2,3.04386]
[1720830955844,2.43710221,3139.3,3139.2,3.04386]
[1720830956137,2.43710221,3139.3,3139.2,3.15081106]
[1720830958044,1.10352007,3139.3,3139.2,3.15081106]
[1720830958510,2.77049775,3139.3,3139.2,3.15081106]
[1720830958707,1.10352007,3139.3,3139.2,3.15081106]
[1720830959111,1.66685098,3139.4,3139.2,3.15081106]
[1720830959323,2.77039163,3139.3,3139.2,3.15081106]
[1720830960127,2.77039163,3139.3,3139.2,0.92095106]
[1720830961158,2.77039163,3139.3,3139.2,0.10695106]
[1720830961159,3.94470193,3139.3,3139.2,0.10695106]
[1720830961450,2.3641,3139.2,3138.8,0.4]
[1720830961650,3.10354105,3139.1,3138.8,0.4]
[1720830961954,2.77036723,3139.0,3138.9,0.92117366]
[1720830962148,2.77030764,3139.0,3138.9,0.92117366]
[1720830963127,1.10369985,3139.0,3138.9,0.92117366]
[1720830964060,2.77042357,3139.0,3138.9,0.92117366]
[1720830964234,1.10366629,3139.0,3138.9,0.92117366]
[1720830964434,2.77054276,3139.0,3138.9,0.92117366]
[1720830964664,1.10366629,3139.0,3138.9,0.92117366]
[1720830964862,1.103741,3139.0,3138.9,0.92117366]
[1720830965648,3.10406753,3139.0,3138.9,0.92117366]
[1720830965854,1.103741,3139.0,3138.9,0.92117366]
[1720830966456,3.10406753,3139.0,3138.9,0.92117366]
[1720830966671,1.103741,3139.0,3138.9,0.92117366]
[1720830966831,3.10406753,3139.0,3138.9,0.92117366]
[1720830967759,1.103741,3139.0,3138.9,0.92117366]
[1720830968160,1.10369493,3139.0,3138.9,0.92117366]
[1720830970536,3.10439483,3139.0,3138.9,0.92117366]
[1720830970732,3.65124431,3139.0,3138.9,0.92117366]
[1720830971464,2.3641,3139.2,3138.9,0.92117366]
[1720830971637,2.00167045,3139.0,3138.9,0.92117366]
[1720830971837,3.10542503,3139.0,3138.9,0.92117366]
[1720830972037,3.10544564,3139.0,3138.9,0.92117366]
[1720830972233,3.40106747,3139.0,3138.9,0.10717366]
[1720830972437,3.97470334,3139.0,3138.8,0.4]
[1720830972647,1.10376747,3138.9,3138.8,0.4]
[1720830973785,2.80591781,3138.9,3138.8,0.4]
[1720830974494,2.00232331,3138.9,3138.8,0.4]
[1720830974777,2.2973,3139.0,3138.8,0.4]
[1720830974980,2.00233547,3138.9,3138.8,0.4]
[1720830975336,2.2973,3139.0,3138.8,0.4]
[1720830975564,2.76063581,3139.0,3138.8,0.4]
[1720830976141,5.09669386,3139.0,3138.8,0.4]
[1720830977346,2.2973,3139.0,3138.8,0.4]
[1720830978268,4.63453207,3139.0,3138.8,0.4]
[1720830978770,2.2973,3139.0,3138.8,0.4]
[1720830979160,4.63453207,3139.0,3138.8,0.4]
[1720830979746,2.2973,3139.0,3138.8,0.4]
[1720830980274,4.6348247,3139.0,3138.8,0.4]
[1720830981643,4.635176,3139.0,3138.8,0.4]
[1720830982063,4.63517579,3139.0,3138.8,0.4]
[1720830982369,2.33787579,3138.9,3138.8,0.4]
[1720830983473,2.33787579,3138.9,3138.7,0.814]
[1720830983674,1.10381327,3138.8,3138.7,0.814]
[1720830984594,1.10381238,3138.8,3138.7,0.814]
[1720830984800,2.2973,3139.0,3138.7,0.814]
[1720830984990,3.44199724,3138.9,3138.7,0.814]
[1720830985299,1.10381195,3138.8,3138.7,0.814]
[1720830986090,1.10381195,3138.8,3138.7,0.92137411]
[1720830986796,3.10794108,3138.8,3138.7,0.92137411]
[1720830987597,1.10381195,3138.8,3138.7,0.92137411]
[1720830988165,2.2721,3139.4,3138.7,0.92137411]
[1720830988371,2.00416235,3138.9,3138.7,0.10737411]
[1720830988592,2.00416235,3138.9,3138.8,0.814]
[1720830988798,3.10786887,3138.9,3138.8,0.814]
[1720830989031,3.10786887,3138.9,3138.8,0.92129516]
[1720830989216,3.10786887,3138.9,3138.8,3.15144516]
[1720830990308,1.10370652,3138.9,3138.8,3.15144516]
[1720830991490,2.2721,3139.4,3138.8,3.15144516]
[1720830991686,1.10368386,3138.9,3138.8,2.33744516]
[1720830991896,3.10808782,3138.9,3138.8,3.35144516]
[1720830992067,2.00497135,3139.0,3138.8,3.35144516]
[1720830992268,3.10866538,3138.9,3138.8,3.35144516]
[1720830992886,1.10369403,3138.9,3138.8,3.35144516]
[1720830993477,3.10866538,3138.9,3138.8,3.35144516]
[1720830993679,1.10369403,3138.9,3138.8,3.35144516]
[1720830993906,1.10369403,3138.9,3138.8,5.82704516]
[1720830994224,2.77477012,3138.9,3138.8,5.82704516]
[1720830994446,7.12,3139.5,3138.9,2.23003]
[1720830994745,7.12,3139.5,3139.0,3.15115019]
[1720830994746,2.00526713,3139.1,3139.0,3.15115019]
[1720830995028,2.00535848,3139.3,3139.1,2.22993]
[1720830995228,1.10356743,3139.2,3139.1,2.22993]
[1720830995425,1.10356743,3139.2,3139.1,3.15100771]
[1720830997144,1.10356743,3139.2,3139.1,5.62660771]
[1720830997437,2.77467393,3139.2,3139.1,7.85653771]
[1720830998012,7.12,3139.5,3139.4,2.22972]
[1720830998231,8.22341184,3139.5,3139.4,3.15042427]
[1720830999706,10.22876859,3139.5,3139.4,0.92070427]
[1720830999911,3.10876859,3139.5,3139.4,0.92070427]
[1720831001314,3.10801864,3139.5,3139.4,3.15042427]
[1720831001913,3.10780523,3139.5,3139.4,3.15042427]
[1720831003449,1.10348512,3139.5,3139.4,3.15042427]
[1720831004146,0.33367208,3139.9,3139.4,3.15042427]
[1720831004348,2.00410865,3139.6,3139.4,2.33642427]
[1720831004547,0.33367208,3139.9,3139.5,0.814]
[1720831004735,2.00396306,3139.6,3139.5,0.814]
[1720831004941,3.10740867,3139.6,3139.5,0.814]
[1720831005449,0.33367208,3139.9,3139.5,0.814]
[1720831005648,3.10722942,3139.6,3139.5,0.814]
[1720831008063,3.10689749,3139.6,3139.5,0.814]
[1720831009554,1.103472,3139.6,3139.5,0.814]
[1720831009763,3.10689749,3139.6,3139.5,0.814]
[1720831010333,1.103472,3139.6,3139.5,0.814]
[1720831011468,1.10343085,3139.6,3139.5,0.814]
[1720831011965,9.3798,3140.0,3139.5,0.814]
[1720831012165,2.00282446,3139.8,3139.5,0.814]
[1720831012368,1.10342704,3139.7,3139.5,0.814]
[1720831012662,1.10342704,3139.6,3139.5,0.814]
[1720831012834,1.10342704,3139.7,3139.5,0.814]
[1720831013037,1.10342704,3139.7,3139.6,0.814]
[1720831013645,1.10342704,3139.8,3139.6,0.814]
[1720831013939,2.00282446,3139.9,3139.7,3.04344]
[1720831014138,1.10336505,3139.8,3139.7,3.04344]
[1720831014440,9.12210465,3140.0,3139.8,2.22944]
[1720831014631,9.12211984,3140.0,3139.9,0.814]
[1720831014839,10.22547192,3140.0,3139.9,0.814]
[1720831015258,8.22335208,3140.0,3139.9,0.814]
[1720831016057,10.22547192,3140.0,3139.9,0.814]
[1720831016238,8.22335208,3140.0,3139.9,0.814]
[1720831017582,8.22335208,3140.0,3139.5,2.22961]
[1720831017583,2.2598,3139.9,3139.5,2.22961]
[1720831017779,1.6671621,3139.7,3139.2,3.0]
[1720831017978,2.2598,3139.7,3139.6,0.10651941]
[1720831018183,13.24417141,3140.5,3138.8,0.6]
[1720831018184,1.10354154,3139.6,3138.8,1.414]
[1720831018343,1.66692272,3139.0,3138.8,1.414]
[1720831018548,2.00030727,3139.2,3138.9,0.10354744]
[1720831018744,1.10371279,3139.1,3138.9,0.10354744]
[1720831018994,1.10371279,3139.0,3138.9,0.10354744]
[1720831019147,3.36351279,3139.0,3138.9,0.10354744]
[1720831020165,3.8998948,3139.0,3138.9,0.10354744]
[1720831020365,5.90020207,3139.0,3138.9,0.10354744]
[1720831020597,3.8998948,3139.0,3138.9,0.10354744]
[1720831020770,2.79618201,3139.0,3138.9,0.10354744]
[1720831020968,6.31344127,3139.8,3138.9,0.10354744]
[1720831020969,3.814,3139.8,3138.9,0.10354744]
[1720831021225,2.00102961,3139.1,3138.9,0.10354744]
[1720831021523,3.10478338,3139.0,3138.9,0.10354744]
[1720831021830,1.10375377,3139.0,3138.9,0.10354744]
[1720831021970,3.10478338,3139.0,3138.9,0.10354744]
[1720831023578,2.2598,3139.3,3138.9,0.10354744]
[1720831023785,1.10377227,3139.2,3138.9,0.10354744]
[1720831023967,2.00124088,3139.0,3138.9,0.10354744]
[1720831024183,3.10501315,3139.0,3138.9,0.10354744]
[1720831024468,5.43201315,3139.0,3138.9,0.10354744]
[1720831024693,5.43201315,3139.0,3138.8,0.6]
[1720831024694,3.43077227,3139.0,3138.8,0.6]
[1720831024881,6.30835182,3138.9,3138.8,0.6]
[1720831025084,3.43077227,3138.9,3138.8,0.6]
[1720831026499,6.18873236,3138.9,3138.8,0.6]
[1720831026805,2.327,3138.9,3138.8,0.6]
[1720831027098,6.18699904,3138.9,3138.8,0.6]
[1720831027305,3.4310274,3138.9,3138.8,0.6]
[1720831027500,4.4311273,3138.9,3138.8,0.6]
[1720831028590,7.18709894,3138.9,3138.8,0.6]
[1720831029203,4.4311273,3138.9,3138.8,0.6]
[1720831029409,25.61356294,3138.9,3138.8,0.6]
[1720831029573,25.8575913,3138.9,3138.8,0.6]
[1720831029768,23.9679513,3138.9,3138.8,0.6]
[1720831029986,19.1011593,3138.9,3138.8,0.6]
[1720831030211,15.7360039,3138.9,3138.8,0.6]
[1720831030418,2.327,3138.8,3137.4,3.0451]
[1720831030587,1.33171314,3137.8,3137.4,2.2311]
[1720831030774,1.10411172,3137.7,3137.5,0.09782018]
[1720831031170,1.10411172,3137.7,3137.4,2.2311]
[1720831031437,1.33171314,3137.8,3137.6,0.09774763]
[1720831031704,1.33171314,3137.8,3137.7,0.09767508]
[1720831031907,2.76881076,3137.8,3137.0,5.23138]
[1720831032126,1.33117464,3137.5,3137.0,4.46275]
[1720831032328,1.6639683,3137.6,3137.1,3.0]
[1720831032329,1.33117464,3137.6,3137.1,3.0]
[1720831032528,2.4354357,3137.5,3137.0,2.23137]
[1720831032851,1.33117464,3137.5,3137.0,2.23137]
[1720831033341,1.33117464,3137.6,3137.0,2.23137]
[1720831033563,1.33117464,3137.6,3136.6,2.3932]
[1720831033830,1.33117464,3137.4,3136.6,4.62486]
[1720831033997,2.327,3138.0,3136.7,2.23162]
[1720831034327,1.32980246,3137.4,3136.7,2.23162]
[1720831034515,1.32980246,3137.5,3136.7,2.23162]
[1720831035031,2.43415925,3137.4,3136.7,5.23162]
[1720831035214,1.32980246,3137.5,3136.7,5.23162]
[1720831036199,2.327,3137.4,3136.7,5.23162]
[1720831036611,1.32980246,3137.6,3136.8,2.23155]
[1720831036924,1.10434692,3137.5,3136.8,5.23155]
[1720831037131,1.32785565,3137.6,3136.8,5.23155]
[1720831037330,1.32785565,3137.8,3137.1,2.2313]
[1720831037534,1.32785565,3137.9,3137.1,2.2313]
[1720831037704,1.10424708,3137.8,3137.1,2.2313]
[1720831038027,1.32785565,3137.9,3137.1,2.2313]
[1720831038258,3.98681956,3138.1,3137.0,2.23136]
[1720831038259,1.1042463,3137.8,3137.2,2.23128]
[1720831038419,1.32785565,3138.0,3137.2,2.23128]
[1720831038622,1.10424611,3137.9,3137.2,2.23128]
[1720831038823,1.32785565,3138.0,3137.2,2.23128]
[1720831039002,1.10424029,3137.9,3137.2,2.23128]
[1720831039202,3.65485565,3138.1,3137.2,2.23128]
[1720831039419,1.10424003,3138.0,3137.2,2.23128]
[1720831039631,1.10424003,3137.9,3137.2,2.23128]
[1720831039814,1.10424003,3138.0,3137.2,2.23128]
[1720831040215,3.65485565,3138.1,3137.2,2.23128]
[1720831040509,1.10423873,3138.0,3137.2,2.23128]
[1720831040729,1.10423873,3137.9,3137.2,2.23128]
[1720831040933,1.10423873,3138.0,3137.2,2.23128]
[1720831041136,1.10423873,3137.9,3137.2,2.23128]
[1720831041307,1.10423873,3138.0,3137.2,2.23128]
[1720831041504,1.10423873,3137.9,3137.2,2.23128]
[1720831041702,1.10423873,3138.0,3137.2,2.23128]
[1720831042827,1.10423873,3138.0,3137.4,0.2]
[1720831043346,3.65485565,3138.1,3137.4,0.2]
[1720831043645,1.10428351,3138.0,3137.4,0.2]
[1720831043820,1.10428351,3137.9,3137.5,0.08814008]